Cogmind - Beta 13 @@@ ROGUE MODE // 2024.04.15 @ 21:17:17 Player: Fractal Result: Destroyed by S-10 Pest with Light Assault Rifle Performance ------------- Evolutions (0) 0 Regions Visited (1) 200 Robots Destroyed (7) 35 Value Destroyed (200) 200 Prototype IDs (0) 0 Alien Tech Used (0) 0 Bonus (0) 0 TOTAL SCORE: 435 Bonus ------- None Cogmind --------- Core Integrity 0/250 Matter 300/300 Energy 100/100 System Corruption 0% Temperature Cool (0) Movement Core (350) Ox6 Location -10/Materials Parts ------- > --- POWER (1) -------- (None) > --- PROPULSION (2) --- (None) > --- UTILITY (2) ------ Large Storage Unit > --- WEAPON (2) ------- (None) > --- INVENTORY (15) --- Ion Engine Light Ion Engine Aluminum Leg Aluminum Leg Small Storage Unit Large Storage Unit Light Armor Plating Grenade Launcher Peak State ------------ > --- POWER ------------ Light Ion Engine > --- PROPULSION ------- Aluminum Leg Aluminum Leg > --- UTILITY ---------- Large Storage Unit Large Storage Unit > --- WEAPON ----------- EM Pulse Gun Small Laser > --- INVENTORY -------- Light Ion Engine Small Storage Unit Small Laser [Rating: 7] Favorites ----------- Power Light Ion Engine Engine Light Ion Engine Propulsion Aluminum Leg Leg Aluminum Leg Utility Large Storage Unit Storage Large Storage Unit Weapon Small Laser Energy Gun Small Laser Build | -11 -10 ------- Run | Yrd Mat Slots Evolved . | . . Power . | . . Propulsion . | . . Utility . | . . Weapon . | . . Parts Attached 12 | 6 6 Power 3 | 1 2 Engine 3 | 1 2 Core . | . . Reactor . | . . Propulsion 4 | 2 2 Treads . | . . Leg 4 | 2 2 Wheel . | . . Hover . | . . Flight . | . . Utility 3 | 1 2 Device . | . . Storage 3 | 1 2 Processor . | . . Hackware . | . . Protection . | . . Artifact . | . . Weapon 2 | 2 . Energy Gun 2 | 2 . Energy Cannon . | . . Ballistic Gun . | . . Ballistic Cannon . | . . Launcher . | . . Special Weapon . | . . Impact Weapon . | . . Slashing Weapon . | . . Piercing Weapon . | . . Special Melee Weapon . | . . Unidentified Prototypes . | . . Parts Lost 6 | . 6 Power 1 | . 1 Propulsion 3 | . 3 Utility . | . . Weapon 2 | . 2 Highest Loss Streak 6 | . 6 To Critical Strikes . | . . Average Slot Usage (%) 86 | . 86 Engine 13 | . 13 Leg 26 | . 26 Storage 19 | . 19 Energy Gun 26 | . 26 Naked Turns . | . . Heaviest Build 46 | 11 46 Greatest Support 20 | 20 20 Greatest Overweight (x) 6 | 2 6 Average Overweight (x) 1 | . 1 Largest Inventory Capacity 15 | 8 15 Average Capacity 13 | 7 14 Most Carried 9 | 2 9 Average Carried 5 | 1 6 Final Capacity 15 | 8 15 Final Carried 8 | 2 8 Class Distribution -------------------- 100% | Mutant Dominant Class ---------------- Mutant | -10/Materials Resources | -11 -10 ----------- Run | Yrd Mat Matter Collected 297 | 230 67 Remotely . | . . Salvage Created 250 | . 250 Parts 15 | . 15 Haulers Intercepted . | . . Recyclers Shooed . | . . Parts Field Recycled . | . . Retrieved Matter . | . . Parts Self-Destructed . | . . Prevented . | . . Kills | -11 -10 ------- Run | Yrd Mat Combat Hostiles Destroyed 7 | . 7 Guns 7 | . 7 Classes Destroyed 2 | . 2 Swarmer 2 | . 2 Grunt 5 | . 5 Best Kill Streak 3 | . 3 Combat Bots Only 3 | . 3 Max Kills in Single Turn 1 | . 1 Gunslinging . | . . Exploded . | . . Melee . | . . Uniques/NPCs Destroyed . | . . Combat | -11 -10 -------- Run | Yrd Mat Hostile Shots Fired 113 | . 113 Missed 31 | . 31 Damage Taken 764 | . 764 Core 250 | . 250 Absorbed by Shields . | . . Core Remaining (%) 100 | 100 . Volleys Fired 25 | . 25 Largest 2 | . 2 Hottest 80 | . 80 Shots Fired 49 | . 49 Gun 49 | . 49 Cannon . | . . Launcher . | . . Special . | . . Kinetic . | . . Thermal 25 | . 25 Explosive . | . . Electromagnetic 24 | . 24 Robot Hit Streak 4 | . 4 Robot Miss Streak 2 | . 2 Penetration Max . | . . Secondary Targets . | . . Shots Hit Robots 28 | . 28 Core Hits 12 | . 12 Critical Kills . | . . Critical Parts Destroyed . | . . Critical Strikes . | . . Melee Attacks . | . . Impact . | . . Slashing . | . . Piercing . | . . Sneak Attacks . | . . Combat Hostiles . | . . Follow-up Attacks . | . . Damage Inflicted 340 | . 340 Guns 338 | . 338 Cannons . | . . Explosions . | . . Melee . | . . Ramming 2 | . 2 Kinetic . | . . Thermal 182 | . 182 Explosive . | . . Electromagnetic 156 | . 156 Impact . | . . Slashing . | . . Piercing . | . . Highest Corruption . | . . Average Corruption . | . . Corruption Purged . | . . Corruption Blocked . | . . Overload Shots . | . . Overflow Damage . | . . Projectiles . | . . Explosions . | . . Melee . | . . Knockbacks . | . . Impact . | . . Kinetic . | . . Secondary . | . . Self-Inflicted Damage . | . . Shots . | . . Rammed . | . . Targets Rammed 2 | 1 1 Kicked 2 | 1 1 Crushed . | . . Highest Temperature 162 | . 162 Average Temperature 59 | . 59 Received Heat Transfer 222 | . 222 Siege Activations . | . . Robots Corrupted . | . . Combat Hostiles . | . . Parts Fried . | . . Impact Corruptions . | . . Robots Melted . | . . Combat Hostiles . | . . Parts Melted . | . . Heat Transferred 400 | . 400 Parts Sabotaged . | . . Parts Stolen . | . . Parts Stripped . | . . Power Chain Reactions . | . . Alert | -11 -10 ------- Run | Yrd Mat Peak Influence 230 | . 230 Initial . | . . Average 91 | . 106 Maximum Alert Level 1 | . 1 Low Security (%) 80 | 100 77 Level 1 19 | . 22 Level 2 . | . . Level 3 . | . . Level 4 . | . . Level 5 . | . . High Security . | . . Max Security . | . . Squads Dispatched 3 | . 3 Investigation 2 | . 2 Extermination . | . . Reinforcement 1 | . 1 Assault . | . . Garrison . | . . Intercept . | . . Searches Triggered . | . . Construction Impeded . | . . Haulers Reinforced . | . . Active Scanning Responses . | . . Cargo Convoy Interrupts . | . . Stealth | -11 -10 --------- Run | Yrd Mat Distress Signals 1 | . 1 Communications Jammed . | . . Distress Signals . | . . Times Spotted 18 | . 18 Peak Tracking Total 8 | . 8 Tactical Retreats 1 | . 1 Traps | -11 -10 ------- Run | Yrd Mat Traps Triggered 2 | . 2 Indirectly . | . . Trap Hack Attempts . | . . Triggered . | . . Disarmed . | . . Reprogrammed . | . . Reused . | . . Traps Extracted . | . . Installed . | . . Triggered . | . . Machines | -11 -10 ---------- Run | Yrd Mat Machines Disabled 1 | . 1 Max in Single Turn 1 | . 1 Machines Repaired . | . . Machines Dismantled . | . . Machines Sabotaged . | . . Overloaded Fab Kills . | . . Hacking | -11 -10 --------- Run | Yrd Mat Machines Accessed . | . . Terminals . | . . Fabricators . | . . Repair Stations . | . . Recycling Units . | . . Scanalyzers . | . . Garrison Access . | . . Total Hacks . | . . Successful . | . . Failed . | . . Catastrophic . | . . Database Lockouts . | . . Manual . | . . Terminals . | . . Fabricators . | . . Repair Stations . | . . Recycling Units . | . . Scanalyzers . | . . Garrison Access . | . . Terminal Hacks . | . . Fabricator Hacks . | . . Repair Station Hacks . | . . Recycling Unit Hacks . | . . Scanalyzer . | . . Garrison Access Hacks . | . . Unauthorized Hacks . | . . Terminals . | . . Fabricators . | . . Repair Stations . | . . Recycling Units . | . . Scanalyzers . | . . Garrison Access . | . . Data Cores Recovered . | . . Used . | . . Hacking Detections . | . . Full Trace Events . | . . Feedback Events . | . . Feedback Blocked . | . . Robot Schematics Acquired . | . . Robots Built . | . . Authchips . | . . Time . | . . Total Robot Build Rating . | . . Part Schematics Acquired . | . . Parts Built . | . . Authchips . | . . Time . | . . Total Part Build Rating . | . . Parts Repaired . | . . Time . | . . Parts Recycled . | . . Recycled Matter . | . . Retrieved Matter . | . . Retrieved Components . | . . Parts Scanalyzed . | . . Part Schematics Acquired . | . . Parts Damaged . | . . Bothacking | -11 -10 ------------ Run | Yrd Mat Used RIF Installer . | . . Robots Hacked . | . . Non-combat . | . . Combat . | . . Robot Hacks Applied . | . . Relay Couplers Released . | . . Fabnet Peak Effective % . | . . Robots Rewired . | . . Allies Hacked . | . . Hacks Repelled . | . . Allies | -11 -10 -------- Run | Yrd Mat Total Allies . | . . Largest Group . | . . Highest-Rated Group . | . . Highest-Rated Ally . | . . Total Orders . | . . Ally Attacks . | . . Total Damage . | . . Kills . | . . Allies Corrupted . | . . Allies Melted . | . . Intel | -11 -10 ------- Run | Yrd Mat Robot Analysis Total . | . . Derelict Logs Recovered . | . . Drone Launches . | . . Drone Recoveries . | . . Exploration | -11 -10 ------------- Run | Yrd Mat Turns Passed 436 | 62 374 Spaces Moved 179 | 45 134 Core 14 | 13 1 Treads . | . . Legs 165 | 32 133 Wheels . | . . Hover . | . . Flight . | . . Fastest Speed 50 | 50 120 Average Speed 187 | 113 213 Slowest Speed 350 | 150 350 Overloaded Moves . | . . Propulsion Burnouts . | . . Robots Hopped . | . . Cave-ins Triggered . | . . Exploration Rate (%) 17 | 4 31 Regions Visited 1 Branch Regions . Pre-discovered Areas . | . . Known Exits Taken . | . . Unknown Exits Taken 1 | 1 . Scrap Searched . | . . Spaces Dug . | . . Terrain Destroyed . | . . Melee . | . . Projectile . | . . AOE . | . . Terrain Rammed . | . . Walls Destroyed . | . . Machines Disabled . | . . Actions | -11 -10 --------- Run | Yrd Mat Total 226 | 53 173 Wait . | . . Move 178 | 44 134 Hop . | . . Pick Up 6 | 2 4 Fast Attach 8 | 6 2 Attach 1 | . 1 Detach 2 | . 2 Swap 3 | . 3 Drop 1 | . 1 Fire 25 | . 25 Melee . | . . Ram . | . . Kick 2 | 1 1 Crush . | . . Escape Stasis . | . . Rewire . | . . Trap . | . . Miscellaneous . | . . Route ------- -11/Scrapyard -10/Materials History --------- Turn | Location | Event 21 | -11/Scrapyard | Discovered new exit (range 15) 63 | -11/Scrapyard | Entered Materials 305 | -10/Materials | Build established: Mutant 412 | -10/Materials | Core integrity fell below 50% 422 | -10/Materials | Core integrity fell below 20% 437 | -10/Materials | Destroyed by S-10 Pest with Light Assault Rifle Last Messages --------------- 00312_ W-16 Scout sends out distress signal. 00326_ S-10 Pest destroyed. 00349_ K-01 Serf collects debris. 00367_ Triggered Alarm Trap. 00367_ An alarm sounds. 00367_ ALERT: Alarm triggered, dispatching investigation squad. 00372_ U-05 Engineer lays Concrete. 00386_ G-34 Mercenary destroyed. 00386_ K-01 Serf collects debris. 00406_ R-06 Scavenger collects Aluminum Leg. 00407_ EM Pulse Gun destroyed. 00408_ Aluminum Leg destroyed. 00409_ R-06 Scavenger collects Corrupted Ion Engine. 00413_ G-34 Mercenary misfires. 00415_ Lgt. Ion Engine destroyed. 00419_ Aluminum Leg destroyed. 00419_ Sml. Laser destroyed. 00435_ Aluminum Leg destroyed. Map ----- +----------------------------------------------------+ | ?????????????????????????????????????? | | ?????????????????????????????????????? | | ?????????????????????????????????????? | | ?????????????????????????????????????? | | ?????????????????????????????????????? | | ?????????????????????????????????????? | | ?????????????????????????????????????? | | ?????????????????????????????????????? | | ?????????????????????????????????????? | | ?????????????????????????????????????? | | ?????????????????????????????????????? | | ?????????????????????????????????????? | | ?????????????????????????????????????? | | ?????????????????????????????????????? | | ?????????????????????????????????????? | | ????????????????? ?????????????????? | | ????????????????? ????????????????? | | ????????????????# #######??????????? | | ????????????????# # [#??????????? | | ?###????????????# # #??????????? | | ?# ????????????# # #??????????? | | ?# ????????????# # #??????????? | | ?# ???????????# # ![[#??????????? | | ?# ???????????# # [[ #??????????? | | # ???????????# # r[[ #??????????? | | # ???????????# + @#??????????? | | + ?#?????????# #"""s #??????????? | | ?# ?# ????????# #"R s #??????????? | | ?# ?# "???????# #""" #??????????? | | ## ## ??????# # #??????????? | | # ###+#######% ###s####?????????? | | # g #?????????? | | # +?????????? | | # #?????????? | | # #################+##+#?????????? | | ##### #??????????# ??????????????????? | | ????# #??????????# ???????????????? | | ????# #??????????# """"""????????????? | | ????# #??????????# """""""???????????? | | ????# #??????????# """"""" #?????????? | | ##### #??????????# """"""" #######???? | | #??????????# """"""" # ! / #??? | | ##### #??????????# % # #??? | | ????#=#??????????###+####### """" #??? | | ????#%############ #???# """" #??? | | ????#*= #???# """" ???? | | ????# #???# ?????? | | ????# ######+#??????? | | ????# ##+####### % ######## | | ##### # #???####/##### ## # | +----------------------------------------------------+ Best States ------------- Heat Dissipation 25 Energy Generation 10 Energy Capacity 250 Matter Stores 300 Matter Capacity 300 Sight Range 16 Terrain Scan Density 10 Evasion (%) 55 Item Schematics ----------------- None Robot Schematics ------------------ None Fabricated ------------ Nothing Alien Tech Used ----------------- None Achievements -------------- None Challenges ------------ None Game ------ Seed RemoteAbsorptionSaw Manual? 0 Play Time 00:04:02 Cumulative 31.7 hours Start 2024.04.15 @ 21:12:26 End 2024.04.15 @ 21:17:17 Sessions 2 Manual Loads 0 Difficulty Rogue Special Mode None Game No. 45 Rogue 45 Adventurer 0 Explorer 0 Win Type - Total 0 Types 0/0/0/0/0/0/0/0/0 Lore% 19 Gallery% 24 Achievement% 18 Wizard Run 0 Options --------- Layout 1 ASCII 0 Keyboard 1 Movement Numpad Keybinds 0 Fullscreen 1 Font 48/Terminus Map View 50x35 Zoom Use 0% Tactical HUD 1 Map Filters NONE Filters BRIGHTNESS(100) Steam 1 RUN: 74e823f7-46c3-4123-aa37-33a838971ad9